Cogmind - Beta 16.1 @@@ ROGUE MODE // 2026.02.13 @ 14:01:24 Player: eVander Result: Destroyed by Y-64 Sentinel with Wave Gun Performance ------------- Evolutions (3) 1500 Regions Visited (7) 1400 Robots Destroyed (25) 125 Value Destroyed (875) 875 Prototype IDs (26) 520 Alien Tech Used (0) 0 Bonus (337) 337 TOTAL SCORE: 4757 Bonus ------- Follower Combat Kills 60 Aligned with FarCom 300 Friendly Fire -23 Cogmind --------- Core Integrity 0/700 Matter 279/300 Energy 515/515 System Corruption 5% Temperature Cool (9) Movement Core (300) Ox5 Location -7/Lower Caves Parts ------- > --- POWER (2) -------- Neutrino Core > --- PROPULSION (3) --- (None) > --- UTILITY (5) ------ Compact Battery (fused) > --- WEAPON (3) ------- Autogun > --- INVENTORY (5) ---- Trap Reconfigurator Peak State ------------ > --- POWER ------------ Improved Ion Engine Improved Ion Engine > --- PROPULSION ------- Improved VTOL Module Improved VTOL Module Improved VTOL Module > --- UTILITY ---------- Scrap Suit Small Storage Unit Advanced Targeting Computer > --- WEAPON ----------- Shock Bomb Launcher Mini Grenade Launcher > --- INVENTORY -------- Structural Scanner Modified TNC Trap Reconfigurator Sensor Drone Bay Small Laser [Rating: 35] Favorites ----------- Power Light Ion Engine Engine Light Ion Engine Power Core Neutrino Core Propulsion Aluminum Leg Leg Aluminum Leg Flight Unit Improved VTOL Module Utility Small Storage Unit Device Shield Generator Storage Small Storage Unit Processor Advanced Targeting Computer Weapon Small Laser Energy Gun Small Laser Ballistic Gun Autogun Launcher Mini Grenade Launcher Piercing Weapon Spear Build | -11 -10 -10 -10 -9 -8 -7 -7 ------- Run | Yrd Mat Min Exi Min Mat Fac Low Slots Evolved 6 | . . . . . 4 2 . Power 1 | . . . . . 1 . . Propulsion 1 | . . . . . 1 . . Utility 3 | . . . . . 2 1 . Weapon 1 | . . . . . . 1 . Parts Attached 34 | 6 1 1 . . 15 3 8 Power 7 | 1 . . . . 2 . 4 Engine 4 | 1 . . . . 2 . 1 Core 3 | . . . . . . . 3 Reactor . | . . . . . . . . Propulsion 8 | 2 . . . . 5 . 1 Treads . | . . . . . . . . Leg 2 | 2 . . . . . . . Wheel . | . . . . . . . . Hover . | . . . . . . . . Flight 6 | . . . . . 5 . 1 Utility 11 | 1 1 1 . . 5 1 2 Device 4 | . 1 . . . 3 . . Storage 3 | 1 . 1 . . . . 1 Processor 4 | . . . . . 2 1 1 Hackware . | . . . . . . . . Protection . | . . . . . . . . Artifact . | . . . . . . . . Weapon 8 | 2 . . . . 3 2 1 Energy Gun 4 | 2 . . . . 1 1 . Energy Cannon . | . . . . . . . . Ballistic Gun 1 | . . . . . . . 1 Ballistic Cannon . | . . . . . . . . Launcher 2 | . . . . . 2 . . Special Weapon . | . . . . . . . . Impact Weapon . | . . . . . . . . Slashing Weapon . | . . . . . . . . Piercing Weapon 1 | . . . . . . 1 . Special Melee Weapon . | . . . . . . . . Unidentified Prototypes 3 | . . . . . 3 . . Parts Lost 21 | . . . . . 5 . 16 Power 5 | . . . . . 1 . 4 Propulsion 6 | . . . . . 2 . 4 Utility 4 | . . . . . 1 . 3 Weapon 6 | . . . . . 1 . 5 Highest Loss Streak 9 | . . . . . 5 . 9 To Critical Strikes . | . . . . . . . . Average Backups 3 | . 1 3 4 6 4 3 2 Power . | . . . . . . . . Propulsion . | . . . . . . . . Utility 2 | . . 1 3 5 3 2 1 Weapon 1 | . 1 1 1 1 1 1 . Tool/Special . | . . . . . . . . Unused Backups 3 | . . 1 . 1 . . 1 Power . | . . . . . . . . Propulsion . | . . . . . . . . Utility 1 | . . . . . . . 1 Weapon 1 | . . 1 . . . . . Tool/Special 1 | . . . . 1 . . . Average Slot Usage (%) 82 | . 96 100 100 90 77 76 45 Engine 11 | . 14 14 14 14 11 15 3 Core 1 | . . . . . . . 5 Leg 17 | . 28 28 28 28 5 . . Flight 5 | . . . . . 17 23 7 Device 10 | . 11 14 14 13 11 7 2 Storage 11 | . 14 14 14 14 9 7 6 Processor 3 | . . . . . 8 7 8 Energy Gun 16 | . 27 28 28 19 4 2 3 Launcher 2 | . . . . . 10 10 . Peak Build Rating 35 | 6 8 9 12 12 35 34 34 Average Rating 14 | 3 7 8 9 10 25 27 17 On Entrance 13 | . 6 8 9 12 10 27 34 Avg Prop Armor Cover (%) . | . . . . . . . . Naked Turns . | . . . . . . . . Heaviest Build 88 | 11 13 88 13 13 30 27 27 Greatest Support 20 | 20 20 20 20 20 20 15 15 Greatest Overweight (x) 5 | . . 4 . . 1 1 5 Average Overweight (x) . | . . . . . . 1 1 Largest Inventory Capacity 25 | 8 8 25 8 8 8 8 8 Average Capacity 7 | 7 8 8 8 8 8 8 6 Most Carried 8 | 3 3 6 7 8 8 5 6 Average Carried 3 | . 1 3 4 7 4 3 2 Final Capacity 8 | 8 8 8 8 8 8 8 5 Final Carried 8 | . 2 4 7 8 3 4 1 Scrap Suit Usage (%) 4 | . . . . . 33 . . Class Distribution -------------------- 91% | Mutant 8% | Scavenger-Mutant Dominant Class ---------------- Mutant | -10/Materials Mutant | -10/Mines Mutant | -10/Exiles Mutant | -9/Mines Mutant | -8/Materials Mutant | -7/Factory Mutant | -7/Lower Caves Resources | -11 -10 -10 -10 -9 -8 -7 -7 ----------- Run | Yrd Mat Min Exi Min Mat Fac Low Matter Collected 794 | 138 . 172 . 20 156 . 308 Remotely . | . . . . . . . . Salvage Created 754 | . . 54 . 50 403 . 247 Parts 51 | . . 7 . 2 25 . 17 Haulers Intercepted 1 | . . . . . 1 . . Recyclers Shooed . | . . . . . . . . Parts Field Recycled . | . . . . . . . . Retrieved Matter . | . . . . . . . . Parts Self-Destructed 13 | . . . . . . . 13 Prevented . | . . . . . . . . Parts Restored . | . . . . . . . . Kills | -11 -10 -10 -10 -9 -8 -7 -7 ------- Run | Yrd Mat Min Exi Min Mat Fac Low Combat Hostiles Destroyed 19 | . . 1 . 1 10 . 7 Melee 4 | . . . . . . . 4 Guns 4 | . . 1 . 1 1 . 1 AOE 11 | . . . . . 9 . 2 Classes Destroyed 11 | . . 1 . 1 8 . 1 Worker 1 | . . . . . 1 . . Builder 2 | . . . . . 2 . . Hauler 1 | . . . . . 1 . . Recycler 1 | . . . . . 1 . . Watcher 1 | . . . . . 1 . . Swarmer 5 | . . . . . 2 . 3 Grunt 6 | . . . . 1 3 . 2 Brawler 1 | . . . . . 1 . . Sentry 3 | . . 1 . . 2 . . Hunter 2 | . . . . . 2 . . Programmer 2 | . . . . . . . 2 Best Kill Streak 9 | . . 1 . 1 9 . 2 Combat Bots Only 5 | . . 1 . 1 5 . 2 Max Kills in Single Turn 4 | . . 1 . 1 4 . 2 Gunslinging . | . . . . . . . . Exploded 2 | . . . . . 2 . 2 Melee 1 | . . . . . . . 1 Uniques/NPCs Destroyed . | . . . . . . . . Combat | -11 -10 -10 -10 -9 -8 -7 -7 -------- Run | Yrd Mat Min Exi Min Mat Fac Low Hostile Shots Fired 236 | . 1 12 . 12 94 . 117 Missed 68 | . . 5 . 4 24 . 35 Hits 168 | . 1 7 . 8 70 . 82 Melee 7 | . . . . . . . 7 Projectile 161 | . 1 7 . 8 70 . 75 Critical Strikes 7 | . . . . . 1 . 6 Damage Taken 2603 | . 6 43 . 61 1002 . 1491 Core 1056 | . . 16 . 8 310 . 722 Absorbed by Shields 98 | . 2 18 . 24 54 . . Core Remaining (%) 77 | 100 . . . 90 43 . . Volleys Fired 67 | . 1 4 3 6 26 . 27 Largest 2 | . 2 2 2 2 2 . 2 Hottest 109 | . 80 80 80 80 85 . 109 Shots Fired 94 | . 2 8 6 12 36 . 30 Gun 61 | . 2 8 6 12 6 . 27 Cannon . | . . . . . . . . Launcher 33 | . . . . . 30 . 3 Special . | . . . . . . . . Kinetic 17 | . . . . . . . 17 Thermal 27 | . 1 4 3 6 3 . 10 Explosive 18 | . . . . . 16 . 2 Electromagnetic 32 | . 1 4 3 6 17 . 1 Robot Hit Streak 16 | . . 2 . 2 16 . 11 Robot Miss Streak 5 | . . 4 . 2 3 . 5 Penetration Max . | . . . . . . . . Secondary Targets . | . . . . . . . . Shots Hit Robots 66 | . . 3 . 5 28 . 30 Core Hits 45 | . . 2 . 2 27 . 14 Critical Kills . | . . . . . . . . Critical Parts Destroyed . | . . . . . . . . Critical Strikes 2 | . . . . . . . 2 Impale 2 | . . . . . . . 2 Melee Attacks 20 | . . . . . . . 20 Impact . | . . . . . . . . Slashing . | . . . . . . . . Piercing 20 | . . . . . . . 20 Sneak Attacks . | . . . . . . . . Combat Hostiles . | . . . . . . . . Follow-up Attacks . | . . . . . . . . Damage Inflicted 2559 | . . 34 . 48 1598 . 879 Guns 381 | . . 34 . 48 56 . 243 Cannons . | . . . . . . . . Explosions 1787 | . . . . . 1542 . 245 Melee 359 | . . . . . . . 359 Ramming 32 | . . . . . . . 32 Kinetic 80 | . . . . . . . 80 Thermal 238 | . . 22 . 23 30 . 163 Explosive 1367 | . . . . . 1146 . 221 Electromagnetic 483 | . . 12 . 25 422 . 24 Impact . | . . . . . . . . Slashing . | . . . . . . . . Piercing 359 | . . . . . . . 359 Highest Corruption 5 | . . . . . 4 . 5 Average Corruption 3 | . . . . . 4 . 3 Corruption Purged . | . . . . . . . . Corruption Blocked . | . . . . . . . . Effects 17 | . . . . . 8 . 9 Message Errors 5 | . . . . . 2 . 3 Matter Fused 4 | . . . . . 1 . 3 Energy Discharges 1 | . . . . . 1 . . Parts Fused 1 | . . . . . . . 1 Data Loss (minor) 4 | . . . . . 2 . 2 Misfires 1 | . . . . . 1 . . Alerts 1 | . . . . . 1 . . Overload Shots . | . . . . . . . . Overflow Damage 160 | . . . . . 87 . 73 Projectiles . | . . . . . . . . Explosions 87 | . . . . . 87 . . Melee 73 | . . . . . . . 73 Knockbacks . | . . . . . . . . Impact . | . . . . . . . . Kinetic . | . . . . . . . . Secondary . | . . . . . . . . Self-Inflicted Damage 62 | . . . . . 27 . 35 Shots 5 | . . . . . 3 . 2 Rammed 16 | . . . . . . . 16 Targets Rammed 16 | . . . . . . . 16 Kicked . | . . . . . . . . Crushed . | . . . . . . . . Highest Temperature 248 | . 18 42 54 140 248 . 51 Average Temperature 37 | . 12 21 29 71 37 . 17 Received Heat Transfer 586 | . . 6 . 32 431 . 117 Siege Activations . | . . . . . . . . Martial Activations . | . . . . . . . . Shielding Activations . | . . . . . . . . Robots Disrupted . | . . . . . . . . Combat Hostiles . | . . . . . . . . Robots Corrupted . | . . . . . . . . Combat Hostiles . | . . . . . . . . Parts Fried 1 | . . . . . 1 . . Impact Corruptions . | . . . . . . . . Robots Melted . | . . . . . . . . Combat Hostiles . | . . . . . . . . Parts Melted 2 | . . . . . . . 2 Heat Transferred 447 | . . 50 . 50 75 . 272 Parts Sabotaged . | . . . . . . . . Parts Stolen 1 | . . . . . . . 1 Parts Stripped . | . . . . . . . . Power Chain Reactions 1 | . . . . . 1 . . Alert | -11 -10 -10 -10 -9 -8 -7 -7 ------- Run | Yrd Mat Min Exi Min Mat Fac Low Maximum Alert Level 1 | . . . . . 1 . . Low Security (%) 98 | 100 100 100 . 100 93 100 . Level 1 1 | . . . . . 6 . . Level 2 . | . . . . . . . . Level 3 . | . . . . . . . . Level 4 . | . . . . . . . . Level 5 . | . . . . . . . . High Security . | . . . . . . . . Max Security . | . . . . . . . . Peak Influence 217 | . . 20 . 74 217 74 . Initial 74 | . . . . . . 74 . Average 37 | . . 1 . 17 107 28 . Influence Increases 752 | . . 35 . 74 448 . 195 Destroy 0b10 Robot/C 420 | . . 20 . 60 200 . 140 Destroy 0b10 Robot/NC 35 | . . . . . 35 . . Destroy Leader 84 | . . . . 10 64 . 10 Allied During Kill 13 | . . . . 4 9 . . Disable Machine 90 | . . 15 . . 75 . . Destroy Structure 65 | . . . . . 65 . . Lose Combat Pursuer 45 | . . . . . . . 45 Influence Decreases 752 | . . 35 . 74 284 164 195 Entered New Map 90 | . . . . . . 90 . Time Decay 470 | . . 35 . 74 186 74 101 Lost Part 127 | . . . . . 33 . 94 Lost Ally 65 | . . . . . 65 . . Squads Dispatched 2 | . . . . . 1 1 . Investigation . | . . . . . . . . Extermination . | . . . . . . . . Reinforcement 2 | . . . . . 1 1 . Assault . | . . . . . . . . Garrison . | . . . . . . . . Intercept . | . . . . . . . . Searches Triggered . | . . . . . . . . Construction Impeded 1 | . . . . . 1 . . Haulers Reinforced . | . . . . . . . . Active Scanning Responses . | . . . . . . . . Cargo Convoy Interrupts . | . . . . . . . . Stealth | -11 -10 -10 -10 -9 -8 -7 -7 --------- Run | Yrd Mat Min Exi Min Mat Fac Low Distress Signals 4 | . 1 . . . 3 . . Communications Jammed . | . . . . . . . . Distress Signals . | . . . . . . . . Times Spotted 38 | . 2 5 . 3 14 1 13 Peak Tracking Total 5 | . 1 2 . 3 5 1 5 Tactical Retreats 2 | . . . . . . . 2 Traps | -11 -10 -10 -10 -9 -8 -7 -7 ------- Run | Yrd Mat Min Exi Min Mat Fac Low Traps Triggered 2 | . 2 . . . . . . Indirectly . | . . . . . . . . Trap Hack Attempts . | . . . . . . . . Triggered . | . . . . . . . . Disarmed . | . . . . . . . . Reprogrammed . | . . . . . . . . Reused . | . . . . . . . . Traps Extracted . | . . . . . . . . Installed . | . . . . . . . . Triggered . | . . . . . . . . Machines | -11 -10 -10 -10 -9 -8 -7 -7 ---------- Run | Yrd Mat Min Exi Min Mat Fac Low Machines Disabled 6 | . . 1 . . 5 . . Max in Single Turn 2 | . . 1 . . 2 . . Machines Repaired . | . . . . . . . . Machines Dismantled . | . . . . . . . . Machines Sabotaged . | . . . . . . . . Overloaded Fab Kills . | . . . . . . . . Hacking | -11 -10 -10 -10 -9 -8 -7 -7 --------- Run | Yrd Mat Min Exi Min Mat Fac Low Machines Accessed 6 | . . 1 3 . . 1 1 Terminals 1 | . . . . . . 1 . Fabricators . | . . . . . . . . Repair Stations . | . . . . . . . . Recycling Units . | . . . . . . . . Scanalyzers . | . . . . . . . . Garrison Access . | . . . . . . . . Total Hacks 36 | . . 1 33 . . 1 1 Successful 35 | . . 1 33 . . . 1 Failed 1 | . . . . . . 1 . Catastrophic 1 | . . . . . . 1 . Database Lockouts . | . . . . . . . . Manual 7 | . . . 5 . . 1 1 Terminals 1 | . . . . . . 1 . Fabricators . | . . . . . . . . Repair Stations . | . . . . . . . . Recycling Units . | . . . . . . . . Scanalyzers . | . . . . . . . . Garrison Access . | . . . . . . . . Terminal Hacks 35 | . . 1 33 . . . 1 Record 32 | . . . 32 . . . . Open Door 2 | . . 1 . . . . 1 Proto ID Catalog 1 | . . . 1 . . . . Fabricator Hacks . | . . . . . . . . Repair Station Hacks . | . . . . . . . . Recycling Unit Hacks . | . . . . . . . . Scanalyzer . | . . . . . . . . Garrison Access Hacks . | . . . . . . . . Unauthorized Hacks . | . . . . . . . . Terminals . | . . . . . . . . Fabricators . | . . . . . . . . Repair Stations . | . . . . . . . . Recycling Units . | . . . . . . . . Scanalyzers . | . . . . . . . . Garrison Access . | . . . . . . . . Data Cores Recovered . | . . . . . . . . Used . | . . . . . . . . Hacking Detections 1 | . . . . . . 1 . Full Trace Events . | . . . . . . . . Feedback Events . | . . . . . . . . Feedback Blocked . | . . . . . . . . Robot Schematics Acquired . | . . . . . . . . Robots Built . | . . . . . . . . Authchips . | . . . . . . . . Time . | . . . . . . . . Total Robot Build Rating . | . . . . . . . . Part Schematics Acquired . | . . . . . . . . Parts Built . | . . . . . . . . Authchips . | . . . . . . . . Time . | . . . . . . . . Total Part Build Rating . | . . . . . . . . Part Studies Acquired . | . . . . . . . . Parts Repaired . | . . . . . . . . Time . | . . . . . . . . Parts Recycled . | . . . . . . . . Recycled Matter . | . . . . . . . . Retrieved Matter . | . . . . . . . . Retrieved Components . | . . . . . . . . Parts Scanalyzed . | . . . . . . . . Part Schematics Acquired . | . . . . . . . . Parts Damaged . | . . . . . . . . Bothacking | -11 -10 -10 -10 -9 -8 -7 -7 ------------ Run | Yrd Mat Min Exi Min Mat Fac Low Used RIF Installer . | . . . . . . . . Robots Hacked . | . . . . . . . . Non-combat . | . . . . . . . . Combat . | . . . . . . . . Robot Hacks Applied . | . . . . . . . . Relay Couplers Released . | . . . . . . . . Fabnet Peak Effective % . | . . . . . . . . Robots Rewired . | . . . . . . . . Allies Hacked . | . . . . . . . . Hacks Repelled . | . . . . . . . . Allies | -11 -10 -10 -10 -9 -8 -7 -7 -------- Run | Yrd Mat Min Exi Min Mat Fac Low Total Allies 3 | . . . . 3 . . . Largest Group 3 | . . . . 3 1 . . Highest-Rated Group 40 | . . . . 40 16 . . Highest-Rated Ally 16 | . . . . 16 16 . . Total Orders . | . . . . . . . . Ally Attacks 15 | . . . . 14 1 . . Total Damage 142 | . . . . 125 17 . . Kills 3 | . . . . 2 1 . . Allies Corrupted . | . . . . . . . . Allies Melted . | . . . . . . . . Intel | -11 -10 -10 -10 -9 -8 -7 -7 ------- Run | Yrd Mat Min Exi Min Mat Fac Low Active Infowar (turns) 853 | . . . . . 169 216 468 Optics 476 | . . . . . . 15 461 Structural 647 | . . . . . 169 216 262 T.N.C. 7 | . . . . . . . 7 Robot Analysis Total . | . . . . . . . . Derelict Logs Recovered 1 | . . . . . . . 1 Drone Launches 20 | . . . . . 20 . . Drone Recoveries 11 | . . . . . 11 . . Exploration | -11 -10 -10 -10 -9 -8 -7 -7 ------------- Run | Yrd Mat Min Exi Min Mat Fac Low Turns Passed 3771 | 43 183 519 1158 323 520 216 809 Spaces Moved 2688 | 30 138 396 955 246 312 210 401 Core 110 | 6 . . . . 3 . 101 Treads . | . . . . . . . . Legs 1824 | 24 138 396 955 246 65 . . Wheels . | . . . . . . . . Hover . | . . . . . . . . Flight 754 | . . . . . 244 210 300 Fastest Speed 29 | 50 120 120 120 120 29 99 50 Average Speed 124 | 106 120 122 120 120 112 99 165 Slowest Speed 435 | 120 120 400 120 120 190 99 435 Overloaded Moves . | . . . . . . . . Propulsion Burnouts . | . . . . . . . . Robots Hopped . | . . . . . . . . Potential Cave-ins . | . . . . . . . . Cave-ins Triggered . | . . . . . . . . Time Travels 1 | . . . . 1 . . . Exploration Rate (%) 36 | 4 17 52 94 49 15 7 56 Regions Visited 7 Branch Regions 4 Pre-discovered Areas 1 | . . . 1 . . . . Known Exits Taken . | . . . . . . . . Unknown Exits Taken 7 | 1 1 1 1 1 1 1 . Scrap Searched 4 | . . 1 . 2 . . 1 Spaces Dug . | . . . . . . . . Terrain Destroyed 81 | . . . . . 76 . 5 Melee . | . . . . . . . . Projectile . | . . . . . . . . AOE 81 | . . . . . 76 . 5 Terrain Rammed . | . . . . . . . . Walls Destroyed . | . . . . . . . . Machines Disabled . | . . . . . . . . Actions | -11 -10 -10 -10 -9 -8 -7 -7 --------- Run | Yrd Mat Min Exi Min Mat Fac Low Total 2990 | 41 153 421 961 262 448 219 485 Wait 101 | . 7 13 . 8 72 1 . Move 2681 | 29 137 395 954 245 311 209 401 Hop . | . . . . . . . . Pick Up 40 | 6 5 5 3 1 10 3 7 Fast Attach . | . . . . . . . . Attach 39 | 6 3 2 . 1 12 4 11 Detach 8 | . . . . . 3 2 3 Swap 3 | . . . . . 3 . . Drop 6 | . . 2 . 1 3 . . Fire 67 | . 1 4 3 6 26 . 27 Melee 20 | . . . . . . . 20 Ram 16 | . . . . . . . 16 Kick . | . . . . . . . . Crush . | . . . . . . . . Escape Stasis . | . . . . . . . . Rewire 9 | . . . 1 . 8 . . Trap . | . . . . . . . . Miscellaneous . | . . . . . . . . Route ------- -11/Scrapyard -10/Materials -10/Mines (discovered 3 exits: [*Mat x2] / *Exi) -10/Exiles (discovered 2 exits: [*Min x2]) -9/Mines -8/Materials -7/Factory (discovered 3 exits: [*Fac] / [*Sto] / *Low) -7/Lower Caves History --------- Turn | Location | Event 23 | -11/Scrapyard | Discovered new exit (range 16) 44 | -11/Scrapyard | Entered Materials 75 | -10/Materials | Discovered new exit (range 15) 205 | -10/Materials | Met 8R-AWN 227 | -10/Materials | Entered Mines 229 | -10/Mines | Met a Derelict bent on vengeance 229 | -10/Mines | Followed 8R-AWN into the Mines 313 | -10/Mines | Build established: Mutant 327 | -10/Mines | Discovered new exit (range 15) 425 | -10/Mines | Found the Drone Emporium 441 | -10/Mines | Found Prototype Device 531 | -10/Mines | Discovered new exit (range 5) 568 | -10/Mines | Joined a pair of Derelicts in attacking an 0b10 outpost 617 | -10/Mines | Discovered new exit (range 5) 746 | -10/Mines | Entered Exiles 767 | -10/Exiles | Discovered new exit (range 15) 815 | -10/Exiles | Welcomed by 8R-AWN 832 | -10/Exiles | Met EX-HEX 894 | -10/Exiles | Met EX-BIN 917 | -10/Exiles | Aligned with FarCom system 918 | -10/Exiles | Given EX-Vault access code 1152 | -10/Exiles | Met EX-DEC 1168 | -10/Exiles | Learned location of Zion (-6) 1228 | -10/Exiles | Discovered new exit (range 12) 1325 | -10/Exiles | Visited The Gauntlet 1763 | -10/Exiles | Opened EX-Vault 1767 | -10/Exiles | Found Prototype Device 1773 | -10/Exiles | Found Prototype Processor 1776 | -10/Exiles | Found Prototype Device 1783 | -10/Exiles | Identified Modified TNC 1783 | -10/Exiles | Identified Trap Reconfigurator 1783 | -10/Exiles | Identified Chronowheel 1809 | -10/Exiles | Warned to stay clear of 0b10 Research branches 1904 | -10/Exiles | Stole three prototypes: Modified TNC, Trap Reconfigurator, Chronowheel 1904 | -10/Exiles | Entered Mines 1906 | -9/Mines | Assisted by bots powering up and referring to "LRC-V3" 1907 | -9/Mines | Activated Chronowheel 1907 | -9/Mines | Spacetime reconverged on an earlier point 1956 | -9/Mines | Found a Scrap Suit stashed away for nefarious purposes 1978 | -9/Mines | Found Scrap Suit 2173 | -9/Mines | Discovered new exit (range 14) 2227 | -9/Mines | Entered Materials 2227 | -8/Materials | Accompanied by 1 ally 2227 | -8/Materials | Evolved 4 slots: Power x1, Propulsion x1, Utility x2 2239 | -8/Materials | Identified Sensor Drone Bay 2415 | -8/Materials | Lost 5 parts (1p2n1u1w) 2540 | -8/Materials | Core integrity fell below 50% 2690 | -8/Materials | Lost 9 allies 2729 | -8/Materials | Discovered new exit (range 12) 2747 | -8/Materials | Entered Factory 2747 | -7/Factory | Evolved 2 slots: Utility x1, Weapon x1 2749 | -7/Factory | FarCom data flow suspended 2772 | -7/Factory | Discovered new exit (range 15) 2829 | -7/Factory | Discovered new exit (range 9) 2935 | -7/Factory | Discovered new exit (range 7) 2963 | -7/Factory | Entered Lower Caves 3258 | -7/Lower Caves | Core integrity fell below 50% 3296 | -7/Lower Caves | Lost 9 parts (2p2n1u4w) 3410 | -7/Lower Caves | Core integrity fell below 20% 3460 | -7/Lower Caves | Lost 4 parts (1p2u1w) 3534 | -7/Lower Caves | Learned Factory trap positions 3735 | -7/Lower Caves | Build established: Scavenger-Mutant 3772 | -7/Lower Caves | Destroyed by Y-64 Sentinel with Wave Gun Last Messages --------------- 03534_ Acquired derelict log, extracted data. Data stored: Factory trap records. 03535_ JSWS7SLDN9SUDWU75ZSJQFI<6 03601_ System corrupted: Component data lost. 03676_ System corrupted: Matter fused (-6). 03693_ Lgt. Nuclear Core destroyed. 03696_ S YL E>IPSYB5A0I AE |86QS